[Event "IIFL Wealth 4th Mumbai Open"]
[Site "Mumbai"]
[Date "2019.01.07"]
[Round "9"]
[White "Adireddy Tarun"]
[Black "Arhan Chethan Anand"]
[Result "0-1"]
[ECO "D35"]
[WhiteElo "1661"]
[BlackElo "1710"]
[Annotator "NA RC"]
[PlyCount "90"]
[EventDate "2018.12.30"]
[EventType "swiss"]
[EventCountry "IND"]
[SourceTitle "playchess.com"]
[Source "ChessBase"]
[SourceQuality "1"]
[TimeControl "40/5400+30:1800+30"]

1. d4 {[%emt 0:00:00]} d5 {[%emt 0:00:00]} 2. c4 {[%emt 0:00:00]} e6 {[%emt 0:00:00]} 3. Nc3 {[%emt 0:00:00]} Nf6 {[%emt 0:00:00]} 4. cxd5 {[%emt 0:00:00]} exd5 {[%emt 0:00:00]} 5. Bg5 {[%emt 0:00:09]} c6 {[%emt 0:00:07]} 6. e3 {[%emt 0:00:07]} Be7 {[%emt 0:00:11]} 7. Bd3 {[%emt 0:00:09]} Nbd7 {[%emt 0:00:10]} 8. Qc2 {[%emt 0:00:15]} h6 {[%emt 0:00:28]} 9. Bh4 {[%emt 0:00:42]} Nh5 {[%emt 0:00:25]} 10. Bxe7 {[%emt 0:05:14]} Qxe7 {[%emt 0:00:47]} 11. Nf3 {[%emt 0:01:31]} Nf4 {[%emt 0:00:22]} 12. O-O {[%emt 0:01:43]} Nxd3 {[%emt 0:00:30]} 13. Qxd3 {[%emt 0:00:04]} O-O {[%emt 0:00:54]} 14. Rfe1 {[%emt 0:00:56]} Nf6 {[%emt 0:00:28]} 15. Ne5 {[%emt 0:00:36]} Ne4 {[%emt 0:07:02]} 16. f3 {[%emt 0:02:00]} Nd6 {[%emt 0:05:38]} 17. e4 {[%emt 0:04:45]} Be6 {[%emt 0:09:46]} 18. exd5 {[%emt 0:10:32]} cxd5 {[%emt 0:00:19]} 19. Ng4 {[%emt 0:07:34]} Qd7 {[%emt 0:08:18]} 20. Ne3 {[%emt 0:02:02]} Nc4 {[%emt 0:02:25]} 21. b3 {[%emt 0:12:06]} Nxe3 {[%emt 0:11:20]} 22. Rxe3 {[%emt 0:02:03]} a6 {[%emt 0:05:12]} 23. Na4 {[%emt 0:02:38]} Bf5 {[%emt 0:04:33]} 24. Nb6 Qc6 {[%emt 0:01:43]} 25. Qxf5 {[%emt 0:03:36]} Qxb6 {[%emt 0:00:03]} 26. Rd1 {[%emt 0:02:54]} Qa5 {[%emt 0:02:54]} 27. Qc2 {[%emt 0:05:01]} Rac8 {[%emt 0:01:29]} 28. Qd2 {[%emt 0:00:15]} Qb6 {[%emt 0:08:22]} 29. Rde1 {[%emt 0:06:28]} Qg6 {[%emt 0:04:32]} 30. Rc3 {[%emt 0:07:38]} Rfe8 {[%emt 0:06:51]} 31. Rxc8 {[%emt 0:07:12]} Rxc8 {[%emt 0:01:47]} 32. Rc1 {[%emt 0:00:16]} Rxc1+ {[%emt 0:04:17]} 33. Qxc1 {[%emt 0:00:07]} Qd3 {[%emt 0:00:30]} 34. Qb2 {[%emt 0:02:10]} b5 {[%emt 0:01:15]} 35. b4 {[%emt 0:01:13]} h5 {[%emt 0:01:32]} 36. h4 {[%emt 0:01:29]} f5 {[%emt 0:03:11]} 37. Kh2 {[%emt 0:05:09]} Kh7 {[%emt 0:01:07]} 38. Kg3 {[%emt 0:00:44]} g6 {[%emt 0:03:32]} 39. Kf4 {[%emt 0:02:01]} Kg7 {[%emt 0:02:21]} 40. Ke5 {[%emt 0:00:00]} Kf7 {[%emt 0:00:00]} 41. Kxd5 {[%emt 0:03:37]} Qc4+ {[%emt 0:03:08]} 42. Kd6 {[%emt 0:00:43]} Qe6+ {[%emt 0:00:50]} 43. Kc5 {[%emt 0:00:49]} Ke7 {[%emt 0:00:21]} 44. d5 {[%emt 0:02:14]} Qd6+ {[%emt 0:00:01]} 45. Kd4 {[%emt 0:00:11]} Qf6+ 0-1

[Event "IIFL Wealth 4th Mumbai Open"]
[Site "Mumbai"]
[Date "2019.01.07"]
[Round "9"]
[White "Shreyas, Ghadi"]
[Black "Tanuj, Dayal"]
[Result "0-1"]
[ECO "D10"]
[WhiteElo "1653"]
[BlackElo "1803"]
[Annotator "NA RC"]
[PlyCount "65"]
[EventDate "2018.12.30"]
[EventType "swiss"]
[EventCountry "IND"]
[SourceTitle "playchess.com"]
[Source "ChessBase"]
[SourceQuality "1"]
[TimeControl "40/5400+30:1800+30"]

1. d4 {[%emt 0:00:00]} d5 {[%emt 0:00:00]} 2. c4 {[%emt 0:00:00]} c6 {[%emt 0:00:00]} 3. Nc3 {[%emt 0:00:00]} Nf6 {[%emt 0:00:00]} 4. cxd5 {[%emt 0:00:00]} cxd5 {[%emt 0:00:00]} 5. Bf4 {[%emt 0:00:00]} Nc6 {[%emt 0:00:34]} 6. e3 {[%emt 0:00:00]} a6 {[%emt 0:00:06]} 7. Bd3 {[%emt 0:00:06]} e6 {[%emt 0:01:05]} 8. Qe2 {[%emt 0:01:33]} Bb4 {[%emt 0:10:11]} 9. Nf3 {[%emt 0:02:44]} O-O {[%emt 0:07:52]} 10. O-O {[%emt 0:00:13]} h6 {[%emt 0:11:45]} 11. Rfc1 {[%emt 0:01:49]} Nh5 {[%emt 0:02:04]} 12. Bg3 {[%emt 0:00:51]} Nxg3 {[%emt 0:03:15]} 13. hxg3 {[%emt 0:02:36]} Qe7 {[%emt 0:01:39]} 14. Na4 {[%emt 0:08:47]} Bd7 {[%emt 0:04:15]} 15. Nc5 {[%emt 0:01:38]} Bxc5 {[%emt 0:03:30]} 16. Rxc5 {[%emt 0:00:08]} Rfd8 {[%emt 0:07:10]} 17. Rac1 {[%emt 0:04:15]} Qd6 {[%emt 0:01:23]} 18. Qd1 {[%emt 0:11:24]} e5 {[%emt 0:05:42]} 19. dxe5 {[%emt 0:02:26]} Nxe5 {[%emt 0:00:10]} 20. Rxd5 {[%emt 0:03:00]} Nxf3+ {[%emt 0:00:09]} 21. Qxf3 {[%emt 0:00:04]} Qb6 {[%emt 0:00:12]} 22. Qe4 {[%emt 0:12:47]} Be6 {[%emt 0:09:31]} 23. Qh7+ {[%emt 0:19:10]} Kf8 {[%emt 0:00:04]} 24. Rdc5 {[%emt 0:00:05]} Rac8 {[%emt 0:11:32]} 25. Rxc8 {[%emt 0:00:16]} Bxc8 {[%emt 0:00:01]} 26. Rxc8 {[%emt 0:00:10]} Rxc8 {[%emt 0:00:21]} 27. Qh8+ {[%emt 0:00:05]} Ke7 {[%emt 0:00:05]} 28. Qxc8 {[%emt 0:00:06]} Qxb2 {[%emt 0:00:06]} 29. Bc4 {[%emt 0:01:00]} Qb1+ {[%emt 0:01:39]} 30. Kh2 {[%emt 0:00:26]} Qb6 {[%emt 0:00:23]} 31. Bd5 {[%emt 0:01:17]} Qg6 {[%emt 0:00:40]} 32. Qxb7+ {[%emt 0:00:08]} Kd8 {[%emt 0:00:11]} 33. Qxf7 {[%emt 0:01:10]} 0-1

[Event "IIFL Wealth 4th Mumbai Open"]
[Site "Mumbai"]
[Date "2019.01.07"]
[Round "9"]
[White "Bharadia Yash"]
[Black "Dhanashree, Pandit"]
[Result "1-0"]
[ECO "C03"]
[WhiteElo "1584"]
[BlackElo "1676"]
[Annotator "NA RC"]
[PlyCount "109"]
[EventDate "2018.12.30"]
[EventType "swiss"]
[EventCountry "IND"]
[SourceTitle "playchess.com"]
[Source "ChessBase"]
[SourceQuality "1"]
[TimeControl "40/5400+30:1800+30"]

1. e4 e6 2. d4 d5 3. Nd2 Be7 4. e5 c5 5. c3 Nc6 6. Ndf3 Qb6 7. a3 c4 8. Nd2 Na5 9. f4 Nh6 10. Ngf3 Nf5 11. Qe2 Bd7 12. g4 Nh4 13. Bh3 Nb3 14. Nxb3 Nxf3+ 15. Qxf3 Bh4+ 16. Kd1 Qxb3+ 17. Ke2 Be7 18. Rd1 Ba4 19. Rd2 Qb6 20. Kf1 Rf8 21. Kg1 O-O-O 22. Qg3 g6 23. Rf2 Kb8 24. Be3 Rh8 25. Bg2 Rdg8 26. Qf3 Bh4 27. Rd2 Be7 28. h3 Qd8 29. f5 gxf5 30. gxf5 exf5 31. Qxf5 Bd7 32. Qf3 Be6 33. Kh1 Rg6 34. Rg1 Rhg8 35. Bf1 Qd7 36. Rdg2 Bf5 37. Rxg6 hxg6 38. Kh2 Rh8 39. Bg5 Bf8 40. Bf6 Rh7 41. Qg3 Ka8 42. Bg2 Be6 43. Rf1 Qb5 44. Rf2 Rh5 45. h4 Qe8 46. Bh3 Kb8 47. Bxe6 Qxe6 48. Bg5 Kc8 49. Rf6 Qe8 50. Qg4+ Kc7 51. Qf4 Rh7 52. Kg2 Kc8 53. e6 Be7 54. Rxf7 Rxf7 55. exf7 1-0

[Event "IIFL Wealth 4th Mumbai Open"]
[Site "Mumbai"]
[Date "2019.01.07"]
[Round "9"]
[White "Pingale Shivraj"]
[Black "Patil, Ketan"]
[Result "1-0"]
[ECO "C03"]
[WhiteElo "1580"]
[BlackElo "1767"]
[Annotator "NA RC"]
[PlyCount "79"]
[EventDate "2018.12.30"]
[EventType "swiss"]
[EventCountry "IND"]
[SourceTitle "playchess.com"]
[Source "ChessBase"]
[SourceQuality "1"]
[TimeControl "40/5400+30:1800+30"]

1. e4 {[%emt 0:00:00]} e6 {[%emt 0:09:55]} 2. d4 {[%emt 0:00:00]} d5 {[%emt 0:00:00]} 3. Nd2 {[%emt 0:00:00]} Nc6 {[%emt 0:00:00]} 4. c3 {[%emt 0:00:44]} e5 {[%emt 0:00:00]} 5. exd5 {[%emt 0:04:32]} Qxd5 {[%emt 0:00:06]} 6. dxe5 {[%emt 0:00:05]} Nxe5 {[%emt 0:00:21]} 7. Ngf3 {[%emt 0:00:26]} Bg4 {[%emt 0:14:29]} 8. Be2 {[%emt 0:03:03]} O-O-O {[%emt 0:05:36]} 9. O-O {[%emt 0:01:51]} h5 {[%emt 0:08:16]} 10. Nxe5 {[%emt 0:13:38]} Qxe5 {[%emt 0:00:15]} 11. Bxg4+ {[%emt 0:01:51]} hxg4 {[%emt 0:00:08]} 12. Qxg4+ {[%emt 0:00:04]} f5 {[%emt 0:06:38]} 13. Nf3 {[%emt 0:09:20]} Qb5 {[%emt 0:08:20]} 14. Qg3 {[%emt 0:09:44]} Nf6 {[%emt 0:08:30]} 15. Qe5 {[%emt 0:03:51]} Qd7 {[%emt 0:08:50]} 16. Qd4 {[%emt 0:03:32]} Bd6 {[%emt 0:03:58]} 17. Qxa7 {[%emt 0:04:16]} Qc6 {[%emt 0:04:01]} 18. Bg5 {[%emt 0:05:24]} Rdf8 {[%emt 0:14:21]} 19. Rad1 {[%emt 0:04:46]} Ne4 {[%emt 0:02:15]} 20. Qa8+ {[%emt 0:03:59]} Kd7 {[%emt 0:00:02]} 21. Ne5+ {[%emt 0:00:10]} Ke6 {[%emt 0:00:09]} 22. Qxf8 {[%emt 0:01:11]} Rxf8 {[%emt 0:01:51]} 23. Nxc6 {[%emt 0:00:09]} bxc6 24. h4 {[%emt 0:01:59]} Rh8 {[%emt 0:01:55]} 25. Rfe1 {[%emt 0:01:10]} Kf7 {[%emt 0:00:21]} 26. g3 {[%emt 0:05:18]} Bc5 {[%emt 0:02:04]} 27. Be3 {[%emt 0:01:07]} Bd6 {[%emt 0:00:09]} 28. Kg2 {[%emt 0:00:53]} Nf6 {[%emt 0:00:25]} 29. Bg5 {[%emt 0:01:44]} Ne4 {[%emt 0:00:22]} 30. f3 {[%emt 0:01:31]} Nc5 {[%emt 0:01:08]} 31. b4 {[%emt 0:01:44]} Ne6 {[%emt 0:00:21]} 32. a3 {[%emt 0:01:51]} c5 {[%emt 0:00:27]} 33. b5 {[%emt 0:00:44]} Ra8 {[%emt 0:00:10]} 34. b6 {[%emt 0:00:48]} Rxa3 {[%emt 0:01:05]} 35. b7 {[%emt 0:00:36]} Ra2+ {[%emt 0:00:29]} 36. Kf1 {[%emt 0:00:57]} Bxg3 {[%emt 0:00:31]} 37. b8=Q {[%emt 0:00:30]} Nxg5 {[%emt 0:00:30]} 38. Qe8+ {[%emt 0:01:12]} Kf6 {[%emt 0:00:10]} 39. Qe7+ {[%emt 0:00:09]} Kg6 {[%emt 0:00:12]} 40. Qxg5+ {[%emt 0:00:00]} 1-0

[Event "IIFL Wealth 4th Mumbai Open"]
[Site "Mumbai"]
[Date "2019.01.07"]
[Round "9"]
[White "Deshpande Jatin N"]
[Black "Kapadi, Yash"]
[Result "0-1"]
[ECO "A41"]
[WhiteElo "1564"]
[BlackElo "1748"]
[Annotator "NA RC"]
[PlyCount "82"]
[EventDate "2018.12.30"]
[EventType "swiss"]
[EventCountry "IND"]
[SourceTitle "playchess.com"]
[Source "ChessBase"]
[SourceQuality "1"]
[TimeControl "40/5400+30:1800+30"]

1. d4 {[%emt 0:00:00]} d6 {[%emt 0:18:53]} 2. Nf3 {[%emt 0:00:00]} Nd7 {[%emt 0:00:12]} 3. e3 {[%emt 0:01:05]} Ngf6 {[%emt 0:00:08]} 4. Be2 {[%emt 0:01:25]} g6 {[%emt 0:00:41]} 5. O-O {[%emt 0:00:18]} Bg7 {[%emt 0:00:03]} 6. b3 {[%emt 0:01:50]} O-O {[%emt 0:02:28]} 7. Bb2 {[%emt 0:00:10]} c6 {[%emt 0:00:25]} 8. Nbd2 {[%emt 0:00:50]} Qc7 {[%emt 0:00:50]} 9. c4 {[%emt 0:01:52]} Re8 {[%emt 0:00:19]} 10. Qc2 {[%emt 0:00:38]} e5 {[%emt 0:00:38]} 11. e4 {[%emt 0:00:19]} a5 {[%emt 0:04:26]} 12. a3 {[%emt 0:04:11]} b6 {[%emt 0:05:02]} 13. Rad1 {[%emt 0:07:45]} Ba6 {[%emt 0:01:33]} 14. Rfe1 {[%emt 0:02:22]} Rac8 {[%emt 0:00:14]} 15. Bf1 {[%emt 0:04:16]} Qa7 {[%emt 0:11:28]} 16. Nb1 {[%emt 0:08:49]} b5 {[%emt 0:07:31]} 17. h3 {[%emt 0:10:24]} a4 {[%emt 0:07:34]} 18. dxe5 {[%emt 0:03:41]} dxe5 {[%emt 0:10:48]} 19. b4 {[%emt 0:00:33]} bxc4 {[%emt 0:03:13]} 20. Bxc4 {[%emt 0:00:44]} Bxc4 {[%emt 0:00:22]} 21. Qxc4 {[%emt 0:00:09]} Nh5 {[%emt 0:02:46]} 22. Rd6 {[%emt 0:02:33]} Nb6 {[%emt 0:03:58]} 23. Qc5 {[%emt 0:00:48]} Bf8 {[%emt 0:01:26]} 24. Bxe5 {[%emt 0:05:38]} Bxd6 {[%emt 0:00:09]} 25. Bxd6 {[%emt 0:00:06]} Qb7 {[%emt 0:01:37]} 26. Nc3 {[%emt 0:03:20]} Nd7 {[%emt 0:01:06]} 27. Qc4 {[%emt 0:00:19]} Nb6 {[%emt 0:02:21]} 28. Qc5 {[%emt 0:00:46]} Ng7 {[%emt 0:01:13]} 29. Nd4 {[%emt 0:07:36]} Ne6 {[%emt 0:01:14]} 30. Nxe6 {[%emt 0:00:06]} Rxe6 {[%emt 0:00:02]} 31. e5 {[%emt 0:00:53]} Rce8 {[%emt 0:01:27]} 32. Ne4 {[%emt 0:00:55]} Nd7 {[%emt 0:00:40]} 33. Qd4 {[%emt 0:00:11]} h6 {[%emt 0:02:41]} 34. Rc1 {[%emt 0:00:54]} Qb5 {[%emt 0:01:22]} 35. Qa7 {[%emt 0:03:41]} Nxe5 {[%emt 0:05:23]} 36. Bxe5 {[%emt 0:01:42]} Qxe5 {[%emt 0:00:18]} 37. Nc5 {[%emt 0:00:34]} Qf4 {[%emt 0:00:45]} 38. Nd3 {[%emt 0:00:45]} Qd2 {[%emt 0:00:41]} 39. Qa6 {[%emt 0:00:26]} Rd8 {[%emt 0:00:55]} 40. Rxc6 {[%emt 0:00:00]} Rxc6 {[%emt 0:00:00]} 41. Qxc6 {[%emt 0:00:27]} Qxd3 {[%emt 0:00:56]} 0-1

[Event "IIFL Wealth 4th Mumbai Open"]
[Site "Mumbai"]
[Date "2019.01.07"]
[Round "9"]
[White "Awade Pradeep"]
[Black "Sunil, Vaidya"]
[Result "0-1"]
[ECO "C44"]
[WhiteElo "1538"]
[BlackElo "1663"]
[Annotator "NA RC"]
[PlyCount "88"]
[EventDate "2018.12.30"]
[EventType "swiss"]
[EventCountry "IND"]
[SourceTitle "playchess.com"]
[Source "ChessBase"]
[SourceQuality "1"]
[TimeControl "40/5400+30:1800+30"]

1. e4 {[%emt 0:00:00]} e5 {[%emt 0:00:10]} 2. Nf3 {[%emt 0:00:07]} Nc6 {[%emt 0:00:14]} 3. g3 {[%emt 0:02:18]} Nf6 4. d3 Bc5 5. Bg2 d6 6. h3 h6 7. c3 O-O 8. O-O a6 9. Nbd2 Nh5 10. Kh2 Ba7 11. Nh4 Nf4 12. gxf4 Qxh4 13. Nf3 Qh5 14. Be3 f5 15. Nd2 Qxd1 16. Raxd1 exf4 17. Bxa7 Rxa7 18. exf5 Bxf5 19. Bd5+ Kh7 20. Bxc6 bxc6 21. Nf3 c5 22. Rfe1 c6 23. Nh4 Bc8 24. d4 g5 25. dxc5 gxh4 26. cxd6 Rd7 27. c4 c5 28. Re5 Bb7 29. Rxc5 Rg8 30. Rg1 Rxg1 31. Kxg1 Kg6 32. Rc7 Rxc7 33. dxc7 Kf5 34. Kf1 Ke5 35. Ke2 Kd6 36. c8=R Bxc8 37. Kf3 Ke5 38. b4 Bxh3 39. b5 Bf1 40. bxa6 Bxc4 41. a7 Bd5+ 42. Kg4 Ke4 43. a4 h3 44. Kxh3 Kf3 0-1

[Event "IIFL Wealth 4th Mumbai Open"]
[Site "Mumbai"]
[Date "2019.01.07"]
[Round "9"]
[White "Dhanvij Ansh"]
[Black "Krishnan, Ritvik"]
[Result "1-0"]
[ECO "A45"]
[WhiteElo "1523"]
[BlackElo "1812"]
[Annotator "NA RC"]
[PlyCount "72"]
[EventDate "2018.12.30"]
[EventType "swiss"]
[EventCountry "IND"]
[SourceTitle "playchess.com"]
[Source "ChessBase"]
[SourceQuality "1"]
[TimeControl "40/5400+30:1800+30"]

1. d4 {[%emt 0:00:00]} Nf6 {[%emt 0:00:00]} 2. Bg5 {[%emt 0:00:00]} g6 {[%emt 0:00:00]} 3. Bxf6 {[%emt 0:00:34]} exf6 {[%emt 0:00:00]} 4. e3 {[%emt 0:00:06]} d5 {[%emt 0:00:53]} 5. Ne2 {[%emt 0:00:18]} f5 {[%emt 0:04:58]} 6. h4 {[%emt 0:00:28]} Bg7 {[%emt 0:07:22]} 7. Nf4 {[%emt 0:00:53]} O-O {[%emt 0:00:41]} 8. g3 {[%emt 0:05:55]} c5 {[%emt 0:01:08]} 9. c3 {[%emt 0:00:37]} cxd4 {[%emt 0:01:51]} 10. cxd4 {[%emt 0:00:09]} Nc6 {[%emt 0:00:35]} 11. Bg2 {[%emt 0:00:44]} Be6 {[%emt 0:01:58]} 12. Nc3 {[%emt 0:01:53]} Ne7 {[%emt 0:02:35]} 13. Qb3 {[%emt 0:02:02]} Re8 {[%emt 0:17:44]} 14. O-O {[%emt 0:02:12]} Qa5 {[%emt 0:09:27]} 15. Ncxd5 {[%emt 0:04:20]} Nxd5 {[%emt 0:02:23]} 16. Bxd5 {[%emt 0:00:39]} Bxd5 {[%emt 0:04:16]} 17. Nxd5 {[%emt 0:00:36]} Rad8 {[%emt 0:03:19]} 18. Nc3 {[%emt 0:02:43]} f4 {[%emt 0:00:34]} 19. gxf4 {[%emt 0:04:48]} Qh5 {[%emt 0:01:44]} 20. Qxb7 {[%emt 0:01:22]} Qxh4 {[%emt 0:03:22]} 21. Qg2 {[%emt 0:01:33]} Rd6 {[%emt 0:03:44]} 22. Ne4 {[%emt 0:03:49]} Rb6 {[%emt 0:03:29]} 23. b3 {[%emt 0:00:14]} g5 {[%emt 0:01:44]} 24. Ng3 {[%emt 0:09:57]} gxf4 {[%emt 0:00:55]} 25. exf4 {[%emt 0:00:26]} Rg6 {[%emt 0:00:43]} 26. f5 {[%emt 0:03:32]} Rg4 {[%emt 0:02:03]} 27. Rae1 {[%emt 0:05:40]} Rxe1 {[%emt 0:03:20]} 28. Rxe1 {[%emt 0:00:07]} Bxd4 {[%emt 0:01:18]} 29. Re8+ {[%emt 0:05:25]} Kg7 {[%emt 0:00:02]} 30. Kf1 {[%emt 0:01:25]} Qg5 {[%emt 0:01:24]} 31. Qa8 {[%emt 0:14:24]} Kh6 {[%emt 0:06:04]} 32. Qc6+ {[%emt 0:03:27]} Kg7 {[%emt 0:01:45]} 33. Qd6 {[%emt 0:02:16]} Qc1+ {[%emt 0:11:20]} 34. Ke2 {[%emt 0:02:28]} Qc2+ {[%emt 0:00:41]} 35. Kf3 {[%emt 0:00:20]} Qd1+ {[%emt 0:00:49]} 36. Kg2 {[%emt 0:05:09]} h5 {[%emt 0:03:12]} 1-0